bitfinex/quotes_ETHUSD_20240922
["timestamp","ask_amount","ask_price","bid_price","bid_amount"]
[1726964484466,6.7276,2622.8,2622.1,1.0]
[1726964484467,0.55,2622.5,2622.1,1.0]
[1726964484778,0.08795716,2622.4,2622.1,1.0]
[1726964484962,0.08795716,2622.4,2622.2,0.07079634]
[1726964485297,0.55,2622.5,2622.2,0.07079634]
[1726964485507,6.7276,2622.6,2622.2,0.07079634]
[1726964485658,6.7276,2622.6,2622.4,3.0]
[1726964486000,13.80662347,2623.6,2622.3,0.07068807]
[1726964486001,6.7276,2622.8,2622.3,0.07068807]
[1726964486195,8.74662347,2623.6,2622.3,0.07068807]
[1726964486196,6.7276,2623.4,2622.8,3.0]
[1726964486669,1.46861951,2623.5,2622.1,1.0]
[1726964486670,6.7276,2623.2,2622.1,1.0]
[1726964486672,2.66762,2624.1,2622.9,0.07004318]
[1726964486673,7.0157,2623.0,2622.9,0.07004318]
[1726964486871,7.0157,2623.0,2622.1,1.0]
[1726964487071,0.08795716,2622.9,2622.1,1.44785576]
[1726964487291,0.08795716,2622.9,2622.2,3.44785576]
[1726964487465,7.0157,2623.0,2622.2,3.44785576]
[1726964487807,7.0157,2623.3,2622.2,3.90519316]
[1726964488005,0.78952716,2623.2,2622.2,3.90519316]
[1726964488397,0.78952716,2623.2,2622.2,3.44785576]
[1726964488905,7.0157,2623.1,2622.2,0.44785576]
[1726964489204,7.0157,2622.9,2622.2,0.44785576]
[1726964489404,0.63795716,2622.8,2622.2,0.44785576]
[1726964489606,7.0157,2622.6,2622.2,0.44785576]
[1726964489794,0.08795716,2622.5,2622.2,0.44785576]
[1726964490592,7.0157,2622.8,2622.2,0.44785576]
[1726964490888,0.08795716,2622.7,2622.2,3.44785576]
[1726964492316,7.0157,2623.1,2622.2,3.44785576]
[1726964492317,0.08795716,2623.0,2622.2,3.44785576]
[1726964492512,0.86847988,2623.0,2622.2,3.44785576]
[1726964492871,0.86847988,2623.0,2622.2,0.44785576]
[1726964493332,0.55,2622.9,2622.2,0.44785576]
[1726964493564,7.10365716,2622.8,2622.1,1.0]
[1726964493679,0.76536572,2622.7,2622.1,4.0]
[1726964493882,0.08795716,2622.6,2622.1,4.0]
[1726964494179,0.08795716,2622.6,2622.1,4.44785576]
[1726964494918,0.08795716,2622.6,2622.1,1.44785576]
[1726964495275,0.87485945,2622.6,2622.1,1.44785576]
[1726964496018,0.87485945,2622.6,2622.1,4.44785576]
[1726964497219,7.5657,2622.5,2622.1,1.44785576]
[1726964497434,7.5657,2622.2,2622.1,1.0]
[1726964497614,8.41902288,2622.2,2622.1,1.0]
[1726964497924,8.33106572,2622.2,2622.1,1.0]
[1726964499813,8.33106572,2622.2,2622.1,1.07083827]
[1726964500123,8.33106572,2622.2,2622.1,1.0]
[1726964501118,8.33106572,2622.2,2622.1,1.07083827]
[1726964507663,7.5657,2622.2,2622.1,1.07083827]
[1726964508633,6.9199,2622.7,2622.1,1.07083827]
[1726964508838,0.08795716,2622.6,2622.1,4.0]
[1726964509052,0.08795716,2622.6,2622.1,1.0]
[1726964509252,0.08795716,2622.6,2622.2,0.07107318]
[1726964509564,0.78874288,2622.6,2622.1,1.0]
[1726964509935,0.55,2622.5,2622.2,0.07107318]
[1726964510137,0.55,2622.3,2622.2,0.07107318]
[1726964512826,7.4699,2622.3,2622.2,0.07107318]
[1726964513024,8.22568572,2622.3,2622.2,0.07107318]
[1726964514263,0.75578572,2622.3,2622.2,0.07107318]
[1726964514468,0.08795716,2622.4,2622.2,0.07107318]
[1726964516228,0.55,2622.3,2622.2,0.07107318]
[1726964516454,7.4699,2622.3,2622.2,0.07107318]
[1726964516624,11.10281734,2622.3,2622.2,0.07107318]
[1726964517489,6.9199,2622.2,2622.1,0.29293278]
[1726964517624,1.74823889,2622.2,2622.1,0.29293278]
[1726964517832,7.55785716,2622.2,2622.1,0.29293278]
[1726964520778,7.55785716,2622.2,2622.1,0.35954959]
[1726964521283,7.4699,2622.2,2622.1,0.29293278]
[1726964521877,6.9199,2622.2,2622.1,0.29293278]
[1726964522367,6.9199,2623.0,2622.1,0.35954043]
[1726964522492,6.9199,2622.8,2622.1,0.29293278]
[1726964522583,7.00785716,2622.7,2622.1,0.29293278]
[1726964522877,0.08795716,2622.6,2622.1,0.29293278]
[1726964522977,6.9199,2622.7,2622.1,0.29293278]
[1726964523230,0.08795716,2622.6,2622.2,0.06643757]
[1726964524223,6.9199,2622.5,2622.2,0.06643757]
[1726964524378,0.55,2622.3,2622.2,0.06643757]
[1726964524625,0.55,2622.4,2622.2,0.06643757]
[1726964524894,0.08795716,2622.3,2622.1,0.29293278]
[1726964525214,0.55,2622.4,2622.1,0.29293278]
[1726964525674,0.55,2622.2,2622.1,0.29293278]
[1726964526488,0.08795716,2622.4,2622.1,0.29293278]
[1726964527422,0.08795716,2622.3,2622.1,0.29293278]
[1726964527721,0.63795716,2622.6,2622.1,0.29293278]
[1726964528032,1.32994716,2622.6,2622.1,0.29293278]
[1726964528515,0.55,2622.4,2622.1,0.29293278]
[1726964528817,0.55,2622.2,2622.1,0.29293278]
[1726964529107,0.55,2622.4,2622.1,0.29293278]
[1726964529345,0.08795716,2622.3,2622.1,0.29293278]
[1726964529929,0.08795716,2622.3,2622.2,0.06636434]
[1726964531862,0.55,2622.5,2622.2,0.06636434]
[1726964532537,0.08795716,2622.4,2622.2,0.06636434]
[1726964533275,7.7952,2622.3,2622.2,0.06636434]
[1726964533575,8.67147288,2622.3,2622.1,0.29293278]
[1726964533728,0.63795716,2622.2,2622.1,0.29293278]
[1726964536153,4.2708745,2622.2,2622.1,0.29293278]
[1726964538375,7.7168,2622.1,2622.0,1.5]
[1726964538536,8.31067618,2622.1,2622.0,1.5]
[1726964538737,7.1668,2622.0,2621.0,0.48592136]
[1726964538960,0.55,2621.7,2621.0,0.0380656]
[1726964539231,7.1668,2621.8,2621.1,0.0656063]
[1726964539232,0.55,2621.5,2621.1,0.0656063]
[1726964539429,0.55,2621.3,2621.1,0.0656063]
[1726964539634,0.55,2621.1,2621.0,0.0380656]
[1726964540181,0.55,2621.4,2621.0,0.0380656]
[1726964540362,0.08795716,2621.3,2621.0,0.1037734]
[1726964541259,0.55,2621.2,2621.0,0.1037734]
[1726964541479,0.63795716,2621.1,2621.0,0.1037734]
[1726964542261,0.55,2621.4,2621.0,0.1037734]
[1726964542549,0.08795716,2621.3,2621.0,0.1037734]
[1726964542748,7.25475716,2622.0,2621.0,0.55162916]
[1726964542941,7.25475716,2622.0,2621.1,0.4573374]
[1726964543337,7.25475716,2622.0,2621.2,0.06557348]
[1726964543338,8.77382478,2622.0,2621.2,0.06557348]
[1726964543564,0.08795716,2621.9,2621.2,0.06557348]
[1726964544410,0.55,2621.8,2621.2,0.06557348]
[1726964544573,0.08795716,2621.7,2621.2,0.06557348]
[1726964544773,0.55,2621.6,2621.2,0.06557348]
[1726964545081,0.08795716,2621.5,2621.0,0.48592136]
[1726964545483,0.08795716,2621.5,2621.1,0.06357305]
[1726964546096,0.55,2621.8,2621.1,0.06357305]
[1726964546268,1.51906762,2622.0,2621.1,0.51142881]
[1726964546269,0.08795716,2621.7,2621.1,0.51142881]
[1726964546478,0.55,2621.6,2621.1,0.51142881]
[1726964546692,0.08795716,2621.9,2621.1,0.51142881]
[1726964546871,0.63795716,2621.8,2621.1,0.51142881]
[1726964547081,0.63795716,2621.8,2621.5,3.0]
[1726964547379,0.63795716,2621.8,2621.6,0.06306565]
[1726964547914,7.0539,2622.4,2621.6,3.06306565]
[1726964548217,0.79334716,2622.3,2621.1,0.44785576]
[1726964548700,0.79334716,2622.3,2621.2,0.06346927]
[1726964548908,0.79334716,2622.3,2621.2,0.51132503]
[1726964549282,0.55,2622.2,2621.2,0.51132503]
[1726964549487,0.55,2622.0,2621.2,0.51132503]
[1726964549813,0.55,2621.8,2621.2,0.51132503]
[1726964550013,0.08795716,2621.7,2621.2,0.51132503]
[1726964551916,0.55,2621.8,2621.2,0.51132503]
[1726964552218,0.08795716,2621.7,2621.3,0.44785576]
[1726964552374,0.08795716,2621.9,2621.3,0.44785576]
[1726964552570,0.08795716,2621.9,2621.4,0.06326631]
[1726964552571,0.55,2621.8,2621.4,0.06326631]
[1726964552795,0.08795716,2621.7,2621.4,0.06326631]
[1726964552972,0.08795716,2622.0,2621.4,0.06326631]
[1726964553193,0.55,2621.9,2621.3,0.44785576]
[1726964553420,0.55,2621.7,2621.3,0.44785576]
[1726964553613,0.55,2621.5,2621.4,0.06326631]
[1726964553791,7.6039,2621.5,2621.0,0.0380656]
[1726964553998,0.55,2621.3,2621.0,0.0380656]
[1726964554198,0.08795716,2621.2,2621.0,0.0380656]
[1726964554503,7.6039,2621.1,2621.0,0.0380656]
[1726964556268,0.55,2621.1,2621.0,0.0380656]
[1726964560418,0.76918572,2621.3,2621.0,0.0380656]
[1726964560613,0.08795716,2621.2,2621.0,0.0380656]
[1726964560921,0.08795716,2621.5,2621.1,0.06177389]
[1726964561807,0.55,2621.4,2621.1,0.06177389]
[1726964562122,0.08795716,2621.3,2621.0,0.0380656]
[1726964562528,0.08795716,2621.3,2621.1,0.06177389]
[1726964563309,0.55,2621.2,2621.1,0.06177389]
[1726964563727,7.6039,2621.2,2621.1,0.06177389]
[1726964563925,8.37308572,2621.2,2621.0,0.0380656]
[1726964564139,0.63795716,2621.1,2621.0,0.0380656]
[1726964564306,0.63795716,2621.1,2621.0,0.09987732]
[1726964564509,0.63795716,2621.1,2621.0,0.0380656]
[1726964564737,0.63795716,2621.1,2621.0,0.09987732]
[1726964564937,1.48406145,2621.1,2621.0,0.0380656]
[1726964566540,8.53796145,2621.1,2621.0,0.0380656]
[1726964566864,7.6039,2621.1,2621.0,0.0380656]
[1726964569610,7.8006,2621.3,2621.0,0.0380656]
[1726964569827,0.55,2621.1,2621.0,0.0380656]
[1726964572249,0.08795716,2621.1,2621.0,0.0380656]
[1726964572543,0.08795716,2621.1,2621.0,0.10017973]
[1726964572747,0.08795716,2621.4,2621.0,0.0380656]
[1726964572955,0.46004461,2621.4,2621.0,0.0380656]
[1726964574258,0.55,2621.3,2621.0,0.0380656]
[1726964574410,0.08795716,2621.2,2621.0,0.0380656]
[1726964574727,0.55,2621.3,2621.0,0.0380656]
[1726964574930,0.08795716,2621.2,2621.0,0.0380656]
[1726964575139,0.63795716,2621.2,2621.1,0.06201262]
[1726964576234,11.5214745,2621.2,2621.1,0.06201262]
[1726964576559,11.5214745,2621.2,2621.0,0.0380656]
[1726964576560,7.8006,2621.1,2621.0,0.0380656]
[1726964576739,7.88855716,2621.1,2621.0,0.0380656]
[1726964577257,7.88855716,2621.1,2620.3,0.0380656]
[1726964577476,0.55,2620.4,2620.3,0.0380656]
[1726964577619,0.63795716,2620.4,2620.3,0.0380656]
[1726964579582,1.79010461,2620.4,2620.3,0.0380656]
[1726964582567,7.2506,2620.3,2619.5,0.0380656]
[1726964582765,0.63795716,2620.2,2619.6,0.05568048]
[1726964583136,0.63795716,2620.2,2619.5,0.0380656]
[1726964583344,0.55,2620.0,2619.5,0.0380656]
[1726964583577,0.08795716,2619.9,2619.6,0.05568048]
[1726964583775,0.08795716,2619.9,2619.5,0.0380656]
[1726964584068,0.08795716,2619.9,2619.6,0.05568048]
[1726964584464,0.08795716,2620.2,2619.5,0.0380656]
[1726964584650,0.93702762,2620.2,2619.5,0.0380656]
[1726964584852,0.55,2620.1,2619.6,0.05578029]
[1726964585032,0.55,2619.9,2619.6,0.05578029]
[1726964585578,0.08795716,2619.8,2619.5,0.0380656]
[1726964586349,0.55,2619.7,2619.5,0.0380656]
[1726964586563,0.63795716,2619.6,2619.5,0.0380656]
[1726964586747,7.60115716,2619.6,2619.5,0.0380656]
[1726964587028,8.36127288,2619.6,2619.5,0.0380656]
[1726964587275,8.27331572,2619.6,2619.5,0.09394751]
[1726964587575,11.90623306,2619.6,2619.5,0.09394751]
[1726964588035,8.27331572,2619.6,2619.5,2.00270751]
[1726964588240,6.9632,2619.6,2619.5,2.00270751]
[1726964588657,0.55,2619.9,2619.8,1.90854]
[1726964589078,7.5132,2620.0,2619.8,0.05607829]
[1726964589279,6.9632,2620.0,2619.9,1.90846]
[1726964589581,7.74442705,2620.0,2619.9,1.90846]
[1726964589750,7.74442705,2620.0,2619.9,0.05597669]
[1726964589938,7.74442705,2620.0,2619.8,1.9085]
[1726964590133,7.74442705,2620.0,2619.5,0.0380656]
[1726964590134,0.08795716,2619.9,2619.5,0.0380656]
[1726964590369,6.9632,2619.8,2619.5,0.0380656]
[1726964590564,6.9632,2619.6,2619.5,0.0380656]
[1726964590740,7.60115716,2619.6,2619.5,0.0380656]
[1726964591141,9.50983716,2619.6,2619.5,0.09441695]
[1726964591335,9.42188,2619.6,2619.5,0.0380656]
[1726964591851,13.05479734,2619.6,2619.5,0.0380656]
[1726964592054,14.65797682,2619.6,2619.5,0.0380656]
[1726964593489,14.65797682,2619.6,2618.8,1.90923]
[1726964593490,6.9632,2619.3,2618.8,1.90923]
[1726964593661,6.9632,2619.0,2618.8,1.90923]
[1726964593864,0.63795716,2618.9,2618.8,1.90923]
[1726964594065,1.76136461,2618.9,2618.7,0.0380656]
[1726964594289,0.63795716,2618.8,2618.7,1.9474056]
[1726964594497,0.55,2618.8,2618.7,1.9474056]
[1726964594852,0.55,2618.8,2618.7,0.0380656]
[1726964595081,1.42245646,2618.8,2618.7,0.0380656]
[1726964595397,1.42245646,2618.8,2618.7,1.9474056]
[1726964595398,0.87245646,2618.8,2618.7,1.9474056]
[1726964595552,1.12340745,2618.9,2618.8,1.90927]
[1726964595753,1.76136461,2618.9,2618.8,1.90927]
[1726964596562,7.5132,2619.3,2619.0,1.90909]
[1726964596702,7.60115716,2619.3,2619.0,1.90909]
[1726964597070,9.51006716,2619.3,2618.7,0.0380656]
[1726964597280,0.55,2619.0,2618.7,0.0380656]
[1726964597452,0.55,2618.8,2618.7,0.0380656]
[1726964598072,0.08795716,2618.9,2618.8,1.90927]
[1726964598387,0.08795716,2619.0,2618.9,1.90919]
[1726964599096,0.79307288,2619.0,2618.8,1.90921]
[1726964599304,0.55,2618.9,2618.8,1.90921]
[1726964601567,0.55,2618.9,2618.7,0.0380656]
[1726964601750,0.63795716,2618.8,2618.7,0.0380656]
[1726964601978,0.70511572,2619.0,2618.8,1.90926]
[1726964602181,6.9632,2619.1,2619.0,1.90912]
[1726964602384,7.5132,2619.1,2619.0,1.90912]
[1726964603108,0.55,2619.2,2619.1,1.90899]
[1726964603111,0.63795716,2619.2,2619.1,1.90899]
[1726964603487,0.63795716,2619.2,2619.0,1.90912]
[1726964603692,0.97708745,2619.1,2619.0,1.90912]
[1726964604297,0.55,2619.2,2619.1,1.90902]
[1726964604503,0.63795716,2619.2,2619.1,1.90902]
[1726964604857,0.63795716,2619.2,2619.1,1.96616606]
[1726964605899,0.63795716,2619.2,2619.1,0.05714606]
[1726964606389,0.55,2619.3,2619.1,1.96619606]
[1726964606550,6.9632,2619.7,2619.6,1.90868]
[1726964606758,7.05115716,2619.7,2619.6,1.90868]
[1726964606983,6.9632,2619.7,2619.6,1.96343557]
[1726964607313,6.9632,2619.7,2619.6,0.05475557]
[1726964607598,11.3803945,2619.7,2619.3,1.90887]
[1726964607757,11.29243734,2619.7,2619.3,1.90887]
[1726964607959,11.29243734,2619.7,2619.1,1.90902]
[1726964607960,0.55,2619.6,2619.4,0.05307253]
[1726964608158,0.55,2619.6,2619.1,1.90902]
[1726964608159,0.55,2619.4,2619.1,1.90902]
[1726964608395,0.41829173,2619.3,2619.1,1.90902]
[1726964608965,0.41829173,2619.3,2619.1,1.90901]
[1726964609170,0.96829173,2619.3,2619.2,0.05327581]
[1726964609504,7.62699173,2619.3,2619.2,0.05327581]
[1726964609729,0.55,2619.2,2618.9,1.90914]
[1726964609772,0.63795716,2619.1,2619.0,0.05350853]
[1726964609973,0.63795716,2619.1,2618.9,1.90914]
[1726964610300,0.63795716,2619.1,2618.7,1.9473656]
[1726964610301,0.55,2619.0,2618.7,3.8566456]
[1726964610503,0.08795716,2618.9,2618.7,1.9473556]
[1726964610797,0.08795716,2618.9,2618.8,0.05371413]
[1726964610798,0.63795716,2618.9,2618.8,0.05371413]
[1726964610999,0.63795716,2618.9,2618.7,1.9473556]
[1726964611313,0.63795716,2618.9,2618.8,0.05371413]
[1726964611486,7.2087,2618.9,2618.8,0.05371413]
[1726964611690,7.2087,2618.9,2618.7,1.9473556]
[1726964611691,8.02632288,2618.9,2618.7,1.9473556]
[1726964611893,0.63795716,2618.8,2618.7,1.9473556]
[1726964613122,0.63795716,2618.8,2618.7,0.0380656]
[1726964613613,7.29665716,2618.8,2618.7,0.0380656]
[1726964613994,7.2087,2618.2,2617.5,1.91018]
[1726964614191,0.55,2618.0,2617.8,1.90995]
[1726964614367,0.55,2618.0,2617.9,1.9479856]
[1726964615167,0.55,2618.0,2617.9,2.00274641]
[1726964616327,0.99979116,2618.1,2617.9,2.00274641]
[1726964616328,6.6587,2618.6,2617.9,0.09282641]
[1726964616330,1.66711889,2618.5,2618.4,1.90956]
[1726964616542,1.66711889,2618.5,2618.3,1.90958]
[1726964616749,1.66711889,2618.5,2618.4,1.90956]
[1726964616946,1.66711889,2618.5,2618.4,1.9639571]
[1726964617110,0.55,2618.5,2618.4,1.9639571]
[1726964617303,0.08795716,2618.8,2618.4,1.9639571]
[1726964617645,0.55,2618.7,2618.4,1.90956]
[1726964617814,0.55,2618.5,2618.4,1.90956]
[1726964619604,7.2087,2618.5,2618.4,1.90956]
[1726964619801,7.93836572,2618.5,2618.4,0.05451252]
[1726964619999,0.55,2618.3,2617.9,0.0380656]
[1726964620236,7.2087,2618.0,2617.9,0.0380656]
[1726964620421,7.29665716,2618.0,2617.9,0.0380656]
[1726964620623,0.08795716,2618.3,2618.1,1.90971]
[1726964620843,0.55,2618.4,2618.3,1.90961]
[1726964621152,7.43,2618.6,2617.9,0.0380656]
[1726964621153,0.55,2618.6,2617.9,0.0380656]
[1726964621353,0.55,2618.6,2618.5,1.90949]
[1726964622218,0.55,2618.6,2618.1,1.90975]
[1726964622407,0.55,2618.6,2618.1,1.90977]
[1726964622840,0.55,2618.4,2618.2,1.90969]
[1726964623042,0.55,2618.4,2618.1,1.90973]
[1726964623304,0.55,2618.2,2618.1,1.90973]
[1726964623461,0.55,2618.2,2616.1,0.00080382]
[1726964623462,10.84161734,2618.2,2616.1,0.00080382]
[1726964623646,10.84161734,2618.2,2617.4,1.91024]
[1726964623647,2.45986,2618.0,2617.4,1.91024]
[1726964623826,0.55,2617.8,2617.4,1.91024]
[1726964624008,1.09295745,2618.1,2617.6,1.9101]
[1726964624009,0.08795716,2617.7,2617.6,1.9101]
[1726964624212,0.63795716,2618.0,2617.7,1.91001]
[1726964624626,0.63795716,2618.0,2617.6,1.9101]
[1726964625227,0.55,2617.8,2617.6,1.91013]
[1726964625424,0.63795716,2617.7,2617.6,1.91013]
[1726964625613,0.55,2617.8,2617.6,1.91013]
[1726964625614,0.08795716,2617.8,2617.6,1.91013]
[1726964626134,0.08795716,2617.8,2617.6,3.82023]
[1726964626424,0.08795716,2617.8,2617.6,1.9101]
[1726964626554,0.63795716,2618.0,2617.7,1.91007]
[1726964627276,1.47691862,2618.0,2617.7,1.91007]
[1726964627550,0.08795716,2618.0,2617.9,1.90992]
[1726964627775,6.9978,2618.5,2618.1,1.90974]
[1726964627978,0.08795716,2618.4,2618.3,1.90962]
[1726964628328,0.08795716,2618.4,2618.3,1.95918978]
[1726964628930,0.63966539,2618.8,2618.7,1.90934]
[1726964629164,0.63966539,2618.8,2618.3,1.95915978]
[1726964629165,0.63966539,2618.8,2618.6,1.90941]
[1726964629463,0.63966539,2618.8,2618.7,0.0492151]
[1726964630385,14.4278,2619.3,2618.7,0.0492151]
[1726964630741,14.4278,2619.3,2618.1,0.46066068]
[1726964630971,0.08795716,2619.2,2618.1,0.46066068]
[1726964631273,0.08795716,2619.2,2618.2,0.0495787]
[1726964631769,0.55,2619.1,2618.2,0.51023938]
[1726964631977,1.19222493,2619.1,2618.2,0.51023938]
[1726964632456,0.08795716,2619.0,2618.2,0.51023938]
[1726964635680,6.9978,2618.8,2618.2,0.0495787]
[1726964635911,0.08795716,2618.7,2618.2,0.0495787]
[1726964636182,0.08795716,2618.7,2617.7,1.91003]
[1726964636294,0.08795716,2618.7,2618.3,0.04940907]
[1726964636441,7.64002493,2619.1,2617.8,0.46066068]
[1726964636442,0.08795716,2619.0,2617.8,0.46066068]
[1726964636683,0.08795716,2619.0,2617.9,0.04986353]
[1726964637262,0.55,2618.9,2617.9,0.04986353]
[1726964637458,0.08795716,2618.8,2617.9,0.04986353]
[1726964637680,0.55,2618.7,2617.9,0.04986353]
[1726964637897,0.08795716,2618.6,2617.9,0.04986353]
[1726964639618,6.9978,2618.5,2617.9,0.51052421]
[1726964639708,0.79653288,2618.4,2617.9,0.04986353]
[1726964640198,0.79653288,2618.4,2617.7,3.0]
[1726964640405,0.79653288,2618.4,2618.0,0.04975952]
[1726964640698,0.79653288,2618.4,2618.1,0.04965779]
[1726964641060,0.79653288,2618.4,2617.7,0.46066068]
[1726964641264,0.08795716,2618.5,2617.9,0.42992073]
[1726964641465,0.08795716,2618.5,2618.0,0.04975952]
[1726964641710,0.55,2618.4,2617.4,3.46066068]
[1726964641866,0.08795716,2618.3,2618.1,0.04946072]
[1726964642064,0.08795716,2618.3,2617.5,0.46066068]
[1726964642429,0.08795716,2618.3,2617.6,0.04996947]
[1726964642565,0.08795716,2618.3,2617.6,0.51063015]
[1726964642764,0.08795716,2618.3,2617.7,0.46066068]
[1726964642969,0.08795716,2618.3,2618.2,1.90968]
[1726964643508,7.63575716,2618.3,2618.2,0.04935899]
[1726964643681,8.59029088,2618.3,2618.2,0.04935899]
[1726964643882,7.5478,2618.2,2617.7,1.91002]
[1726964644073,0.55,2618.0,2617.7,1.91002]
[1726964644272,0.08795716,2617.9,2617.8,0.04976595]
[1726964644474,0.08795716,2617.9,2617.8,1.95976595]
[1726964644668,0.55,2618.0,2617.8,1.95976595]
[1726964645116,0.55,2618.0,2617.8,3.86971595]
[1726964645296,0.55,2618.0,2617.8,1.95971595]
[1726964645560,6.9978,2618.2,2617.9,1.90992]
[1726964645779,7.5478,2618.2,2618.1,1.90978]
[1726964645993,7.5478,2618.2,2618.1,1.95924072]
[1726964646201,6.9978,2618.2,2618.1,1.95924072]
[1726964646721,1.9093,2618.8,2618.3,1.90962]
[1726964646722,6.9978,2618.8,2618.3,1.90962]
[1726964646871,1.44278,2618.7,2618.1,0.04946072]
[1726964647222,0.64222493,2619.1,2617.2,7.4180656]
[1726964647223,7.61872493,2619.1,2618.8,1.90922]
[1726964647808,0.08795716,2619.0,2618.8,1.90922]
[1726964648008,0.08795716,2619.0,2618.9,0.04864712]
[1726964648751,0.08795716,2619.0,2618.8,1.90921]
[1726964649417,0.08795716,2619.0,2617.7,3.46066068]
[1726964649721,8.47952437,2619.0,2617.8,0.04976595]
[1726964649926,8.47952437,2619.0,2617.9,0.46066068]
[1726964649927,0.08795716,2618.9,2617.9,0.46066068]
[1726964650225,0.55,2618.8,2617.9,0.46066068]
[1726964650383,0.08795716,2618.7,2618.0,0.04954661]
[1726964650926,8.39156721,2619.0,2618.1,3.0]
[1726964651080,1.62476388,2618.9,2618.0,0.04954661]
[1726964651282,1.62476388,2618.9,2617.9,0.46066068]
[1726964651523,1.62476388,2618.9,2618.1,0.04944487]
[1726964651848,1.62476388,2618.9,2617.9,0.46066068]
[1726964652040,1.62476388,2618.9,2618.0,0.04954661]
[1726964652041,1.53680672,2618.9,2618.0,0.04954661]
[1726964652320,7.43,2619.0,2618.1,0.5370383]
[1726964652726,7.43,2619.0,2618.2,0.04930693]
[1726964653892,0.08795716,2618.9,2618.2,0.04930693]
[1726964654850,6.9765,2619.5,2618.3,0.99650738]
[1726964654854,0.08795716,2619.4,2618.3,0.99650738]
[1726964654906,0.08795716,2619.4,2618.4,0.04902654]
[1726964655239,6.9765,2619.2,2618.4,0.04902654]
[1726964655379,0.63795716,2619.1,2618.3,0.51066998]
[1726964655778,6.9765,2619.2,2618.3,0.51066998]
[1726964655982,0.08795716,2619.1,2618.4,0.5725874]
[1726964656238,0.08795716,2619.7,2618.4,1.08325738]
[1726964656435,6.9765,2619.9,2618.5,0.58704247]
[1726964656783,6.9765,2619.9,2618.6,0.64895531]
[1726964657006,0.08795716,2619.8,2618.7,0.51066998]
[1726964657727,0.08795716,2619.8,2618.7,1.08325738]
[1726964658238,0.08795716,2619.8,2618.8,0.04860393]
[1726964658587,0.79440288,2619.8,2618.8,0.04860393]
[1726964659928,0.79440288,2619.8,2618.8,1.13186131]
[1726964660122,0.08795716,2619.7,2618.9,1.08325738]
[1726964660329,0.70644572,2619.8,2618.9,1.08325738]
[1726964660658,0.08795716,2619.7,2618.9,1.08325738]
[1726964660783,0.86504745,2619.7,2619.0,0.04831914]
[1726964661721,0.86504745,2619.7,2618.7,3.0]
[1726964661890,0.86504745,2619.7,2619.1,0.04819712]
[1726964662085,0.86504745,2619.7,2618.7,3.0]
[1726964662405,0.86504745,2619.7,2618.7,3.51066998]
[1726964662602,0.86504745,2619.7,2618.8,0.04850212]
[1726964663117,0.86504745,2619.7,2618.8,0.5591721]
[1726964666554,0.86504745,2619.7,2618.9,0.51066998]
[1726964667033,0.86504745,2619.7,2619.0,0.04814717]
[1726964668693,0.77709029,2619.7,2619.0,1.13140455]
[1726964669004,0.77709029,2619.7,2619.1,1.08325738]
[1726964669357,0.77709029,2619.7,2619.2,0.04793707]
[1726964669830,0.77709029,2619.7,2619.3,0.5725874]
[1726964670040,0.70644572,2619.8,2619.4,0.0477338]
[1726964670197,0.70644572,2619.8,2619.3,0.5725874]
[1726964670395,0.55,2620.1,2619.3,0.5725874]
[1726964671571,0.63795716,2620.1,2619.3,0.5725874]
[1726964671678,0.63795716,2620.1,2619.2,0.51066998]
[1726964671839,0.08795716,2620.1,2619.2,0.51066998]
[1726964671998,7.4680656,2620.3,2619.3,0.62042283]
[1726964672193,2.65547656,2620.2,2619.3,4.77227747]
[1726964672529,2.65547656,2620.2,2619.4,3.0]
[1726964672908,2.65547656,2620.2,2619.5,0.04763217]
[1726964673096,7.4680656,2620.3,2619.5,1.13088955]
[1726964673727,0.08795716,2620.2,2619.5,1.13088955]
[1726964673926,0.08795716,2620.2,2619.5,0.04763217]
[1726964673927,6.68465716,2620.2,2619.5,0.04763217]
[1726964674449,8.50513,2620.0,2619.6,0.04739937]
[1726964674599,6.5967,2619.8,2619.0,0.51066998]
[1726964674798,1.36142288,2619.7,2619.0,0.51066998]
[1726964675040,1.36142288,2619.7,2619.1,0.04790754]
[1726964675617,1.36142288,2619.7,2619.0,0.51066998]
[1726964675922,1.36142288,2619.7,2619.1,0.04790754]
[1726964676741,0.81142288,2619.7,2619.1,0.04790754]
[1726964677540,0.74081229,2619.6,2619.1,0.04790754]
[1726964680427,0.08795716,2619.5,2619.1,0.04790754]
[1726964681799,7.0329,2619.4,2619.1,0.04790754]
[1726964682134,0.08795716,2619.3,2618.4,0.51066998]
[1726964682501,0.08795716,2619.3,2618.5,0.04863972]
[1726964682702,1.54304288,2619.3,2618.5,0.04863972]
[1726964682928,1.54304288,2619.3,2618.5,0.5593097]
[1726964683208,7.43,2619.5,2618.6,1.08325738]
[1726964683439,7.51795716,2619.5,2618.7,0.04843634]
[1726964683750,7.51795716,2619.5,2618.8,0.5725874]
[1726964683900,7.43,2619.5,2618.8,1.08325738]
[1726964684108,7.43,2619.5,2618.9,0.07635883]
[1726964684339,7.43,2619.5,2619.0,1.08325738]
[1726964684541,14.4629,2619.9,2619.0,1.08325738]
[1726964684886,2.04024716,2619.8,2619.0,1.08325738]
[1726964685717,1.95229,2619.8,2619.0,1.08325738]
[1726964685916,2.04024716,2619.8,2619.0,1.08325738]
[1726964686135,0.0380656,2620.3,2619.1,0.07635473]
[1726964686323,0.0380656,2620.3,2619.7,0.5]
[1726964686521,0.12602276,2620.3,2619.7,0.5]
[1726964686937,0.12602276,2620.3,2619.8,0.04730697]
[1726964687109,0.12602276,2620.3,2619.7,0.5]
[1726964687564,0.84191504,2620.3,2619.7,0.5]
[1726964687569,0.84191504,2620.3,2619.8,0.04730697]
[1726964687848,0.84191504,2620.3,2619.7,0.5]
[1726964690870,0.84191504,2620.3,2620.1,0.5]
[1726964692283,9.12385,2620.2,2620.1,0.5]
[1726964692433,7.2156,2620.2,2620.1,0.5]
[1726964692640,7.30355716,2620.2,2620.1,0.5]
[1726964693428,9.21180716,2620.2,2620.1,0.5]
[1726964693633,9.12385,2620.2,2620.1,0.5]
[1726964694179,7.2156,2620.2,2620.1,0.5]
[1726964694182,10.31881972,2620.2,2620.1,0.5]
[1726964694367,10.23086256,2620.2,2620.1,0.5]
[1726964694571,8.32261256,2620.2,2620.1,0.5]
[1726964694940,8.32261256,2620.2,2620.1,1.0]
[1726964695147,1.10701256,2620.2,2620.1,1.0]